bitfinex-derivatives/quotes_ETHF0:USTF0_20251107
["timestamp","ask_amount","ask_price","bid_price","bid_amount"]
[1762483924662,0.1868401,3336.5,3336.4,3.2078]
[1762483927153,0.0036401,3336.5,3336.4,3.2078]
[1762483927363,0.1832,3337.0,3336.4,11.2078]
[1762483927564,0.1832,3337.0,3336.9,3.2078]
[1762483928362,0.18573945,3337.0,3336.9,3.21041037]
[1762483931167,0.1987,3338.5,3337.8,0.48561]
[1762483931364,0.1987,3338.5,3337.9,3.2078]
[1762483931569,0.4774,3338.0,3337.9,3.2078]
[1762483932073,0.18562288,3338.0,3337.4,3.2078]
[1762483932360,0.18562288,3338.0,3337.8,3.2078]
[1762483932568,0.18562288,3338.0,3337.8,3.69341]
[1762483933064,0.1987,3338.5,3338.3,0.48554]
[1762483933368,0.1987,3338.5,3338.4,3.2078]
[1762483933665,3.2078,3339.9,3338.9,0.48546]
[1762483933867,0.1987,3340.2,3339.5,3.2078]
[1762483934165,0.20185036,3339.6,3339.5,3.21068063]
[1762483934366,0.49605036,3339.6,3339.5,2.42602527]
[1762483934671,0.20185036,3339.6,3339.5,2.42602527]
[1762483935065,0.49605036,3339.6,3339.5,2.42602527]
[1762483935466,0.20185036,3339.6,3339.5,2.42602527]
[1762483935965,0.49605036,3339.6,3339.5,2.42602527]
[1762483936474,0.20185036,3339.6,3339.5,2.42602527]
[1762483936966,0.49605036,3339.6,3339.5,2.42602527]
[1762483938465,0.49605036,3339.6,3339.5,0.00288063]
[1762483940176,0.68423,3338.4,3338.3,3.2078]
[1762483940670,0.68423,3338.4,3338.1,0.00449661]
[1762483941077,0.48555,3338.3,3338.1,0.007823]
[1762483942168,0.2942,3338.2,3338.1,0.007823]
[1762483942365,0.77985,3337.6,3337.5,3.2078]
[1762483942569,0.77985,3337.6,3335.9,0.23992647]
[1762483942570,0.97861,3337.2,3337.1,3.2078]
[1762483942775,0.1987,3337.2,3337.1,3.2078]
[1762483942970,0.1987,3337.8,3337.6,0.48564]
[1762483943273,0.2015625,3337.8,3337.6,0.00245548]
[1762483943575,0.2942,3337.7,3337.6,0.00245548]
[1762483944170,3.502,3337.7,3337.6,0.00245548]
[1762483944571,0.2942,3337.7,3337.6,0.00245548]
[1762483945272,0.2015625,3337.8,3337.6,0.00245548]
[1762483945681,0.2015625,3337.8,3337.6,0.48809548]
[1762483945979,0.6871825,3337.8,3337.6,0.48809548]
[1762483946175,0.6871925,3337.8,3337.6,0.00245548]
[1762483946370,0.2942,3337.7,3337.6,0.00245548]
[1762483946772,0.6871925,3337.8,3337.6,0.00245548]
[1762483947282,0.2942,3337.7,3337.6,0.00245548]
[1762483948378,0.2942,3337.5,3337.4,0.00449661]
[1762483949077,0.6871925,3337.8,3337.4,0.49016661]
[1762483949283,0.6871825,3337.8,3337.4,0.49016661]
[1762483949485,0.6871825,3337.8,3337.4,0.4940628]
[1762483949682,0.48564,3337.7,3337.4,0.4940628]
[1762483950185,0.2015625,3337.8,3337.5,0.48566]
[1762483950375,0.6871825,3337.8,3337.4,3.7018628]
[1762483950776,0.00449661,3338.0,3337.9,0.48561]
[1762483950982,0.68432,3337.8,3337.5,3.2078]
[1762483951288,0.48564,3337.7,3337.5,3.2078]
[1762483951495,0.1987,3337.8,3337.6,0.48565]
[1762483951886,0.48564,3337.7,3337.5,3.2078]
[1762483952688,0.48564,3337.7,3337.5,3.69346]
[1762483952988,0.2942,3337.6,3337.5,3.2078]
[1762483953782,0.48564,3337.7,3337.6,0.48565]
[1762483953985,0.20229363,3337.8,3337.6,0.48564]
[1762483954289,0.48564,3337.7,3337.5,3.69346]
[1762483954489,0.68791363,3337.8,3337.6,0.48564]
[1762483954784,0.77986,3337.5,3337.4,0.0083928]
[1762483955888,0.48566,3337.5,3337.4,0.0083928]
[1762483956080,0.77936,3337.5,3337.4,0.0083928]
[1762483956281,0.48577,3336.8,3336.7,3.2078]
[1762483957391,0.48577,3336.8,3336.7,3.21164083]
[1762483957589,0.1732,3337.2,3336.9,0.48575]
[1762483957783,0.48575,3336.9,3336.7,3.69741083]
[1762483957983,0.1732,3337.2,3336.7,3.21164083]
[1762483958182,0.48573,3337.1,3336.9,0.48575]
[1762483958784,0.1732,3337.2,3336.8,0.48576]
[1762483959086,0.48577,3336.9,3336.7,3.21164083]
[1762483959286,0.48573,3337.1,3336.7,3.21164083]
[1762483959492,0.1732,3337.2,3337.0,0.48573]
[1762483959696,0.1732,3337.2,3337.1,3.2078]
[1762483961484,0.4563,3337.2,3337.1,3.2078]
[1762483962293,0.1732,3337.2,3337.1,3.2078]
[1762483963291,0.1728,3337.5,3337.1,3.2078]
[1762483963488,0.20229363,3337.8,3337.6,0.48565]
[1762483963688,0.68791363,3337.8,3337.7,0.48564]
[1762483964082,0.20229363,3337.8,3337.7,0.48564]
[1762483964996,0.20229363,3337.8,3337.6,3.2078]
[1762483965194,0.48564,3337.7,3337.6,3.69345]
[1762483965391,0.68791363,3337.8,3337.7,0.48564]
[1762483966293,0.20229363,3337.8,3337.7,0.48564]
[1762483966502,0.20229363,3337.8,3337.6,3.69344]
[1762483966693,0.20229363,3337.8,3337.7,0.48564]
[1762483967901,0.00449661,3338.0,3337.7,0.48564]
[1762483967902,0.00449661,3338.0,3337.9,0.48561]
[1762483968805,0.00782953,3338.0,3337.9,0.48561]
[1762483969007,0.48562,3337.8,3337.7,3.803]
[1762483969201,0.76872,3337.8,3337.7,3.803]
[1762483969906,0.18062953,3338.0,3337.6,3.2078]
[1762483970106,0.48562,3337.8,3337.6,3.69345]
[1762483970506,0.48562,3337.8,3337.7,0.48564]
[1762483970806,0.1728,3337.5,3337.2,3.2078]
[1762483970995,0.65846,3337.5,3337.2,3.2078]
[1762483971196,0.1728,3337.5,3337.2,3.2078]
[1762483971710,0.1728,3337.5,3337.4,0.48568]
[1762483972001,0.18062953,3338.0,3337.2,3.2078]
[1762483972207,0.18062953,3338.0,3337.9,0.48561]
[1762483972706,0.18062953,3338.0,3337.8,3.2078]
[1762483972707,0.09160256,3338.4,3338.3,0.48555]
[1762483972908,0.1728,3339.0,3338.8,0.48547]
[1762483973603,0.1728,3339.0,3338.7,3.2078]
[1762483973805,0.17504272,3339.0,3338.7,3.2078]
[1762483974305,0.66049272,3339.0,3338.8,0.48547]
[1762483974706,0.17504272,3339.0,3338.8,0.48547]
[1762483975103,0.17504272,3339.0,3338.7,3.2078]
[1762483975611,0.17504272,3339.0,3338.8,0.48547]
[1762483976099,0.66049272,3339.0,3338.8,0.48547]
[1762483976306,0.17504272,3339.0,3338.8,0.48547]
[1762483976912,0.76856,3338.9,3338.7,3.2078]
[1762483977309,0.48546,3338.9,3338.7,3.2078]
[1762483977615,0.17504272,3339.0,3338.7,3.69329]
[1762483977910,0.48546,3338.9,3338.7,3.2078]
[1762483978510,0.48546,3338.9,3338.7,3.69329]
[1762483978915,0.48548,3338.8,3338.7,3.2078]
[1762483979109,0.17504272,3339.0,3338.7,3.2078]
[1762483979110,0.48546,3338.9,3338.8,0.48548]
[1762483979301,0.48546,3338.9,3338.7,3.2078]
[1762483979506,0.17504272,3339.0,3338.7,3.69329]
[1762483980014,0.48548,3338.8,3338.7,3.2078]
[1762483980419,0.7686,3338.6,3338.5,0.00449661]
[1762483980914,0.4855,3338.6,3338.5,0.00449661]
[1762483981115,0.48549,3338.7,3338.5,0.00449661]
[1762483981315,0.48547,3338.9,3338.5,0.00449661]
[1762483981614,0.48549,3338.7,3338.5,0.49000661]
[1762483981815,0.7686,3338.6,3338.5,0.00449661]
[1762483982012,0.66049272,3339.0,3338.7,0.48549]
[1762483982316,0.48548,3338.8,3338.7,3.2078]
[1762483982515,0.76858,3338.8,3338.7,3.2078]
[1762483983708,0.2831,3338.8,3338.7,3.2078]
[1762483984014,0.17504272,3339.0,3338.8,0.48548]
[1762483984417,0.48546,3338.9,3338.7,3.2078]
[1762483984614,0.00224272,3339.0,3338.9,0.48546]
[1762483986620,0.17624272,3339.0,3338.7,3.2078]
[1762483986812,0.17624272,3339.0,3338.9,0.48546]
[1762483987015,0.66168272,3339.0,3338.9,0.48546]
[1762483987217,0.00224272,3339.0,3338.9,0.48546]
[1762483987416,0.00449661,3339.2,3339.1,0.48543]
[1762483987716,0.00449661,3339.2,3339.1,3.69323]
[1762483988623,3.3806,3340.5,3339.7,0.48533]
[1762483988821,0.65811,3340.0,3339.8,0.48531]
[1762483989125,0.48533,3339.8,3339.7,3.69313]
[1762483989417,0.48533,3339.8,3339.7,3.2078]
[1762483989616,0.4854,3339.3,3339.1,0.0037137]
[1762483990211,0.48541,3339.2,3339.1,0.0037137]
[1762483990408,0.74861,3339.2,3339.1,0.0037137]
[1762483990814,0.48539,3339.4,3339.2,0.48541]
[1762483991018,0.48539,3339.4,3339.3,3.6932]
[1762483991725,0.48539,3339.4,3339.3,3.2078]
[1762483991916,0.0034945,3339.8,3339.3,3.2078]
[1762483992117,0.48538,3339.4,3339.3,3.2078]
[1762483992311,0.48541,3339.2,3339.1,0.0037137]
[1762483992514,0.48541,3339.2,3339.1,0.4891437]
[1762483992916,0.174,3339.5,3339.2,0.48541]
[1762483993512,0.174,3339.5,3339.1,0.0037137]
[1762483993513,0.48539,3339.4,3339.3,0.4854]
[1762483993719,0.174,3339.5,3339.4,0.48539]
[1762483994022,0.4854,3339.4,3339.2,0.48541]
[1762483994224,0.4854,3339.4,3339.3,0.4854]
[1762483994423,0.4854,3339.3,3339.2,0.48541]
[1762483995116,0.174,3339.5,3339.1,0.0037137]
[1762483995317,0.74861,3339.2,3339.1,0.0037137]
[1762483995924,0.48541,3339.2,3339.1,0.0037137]
[1762483996316,0.74861,3339.2,3339.1,0.0037137]
[1762484001119,0.2632,3338.6,3338.5,5.32581161]
[1762484001423,0.2632,3337.8,3337.7,3.2078]
[1762484002123,0.2632,3337.8,3337.7,3.21073186]
[1762484002717,0.48561,3337.9,3337.7,3.21073186]
[1762484002913,0.174,3338.0,3337.7,3.21073186]
[1762484003114,0.2632,3337.8,3337.7,3.21073186]
[1762484003822,3.2078,3337.1,3336.4,4.68304044]
[1762484004053,0.2632,3337.2,3335.4,6.93039419]
[1762484004054,0.4859,3335.9,3335.5,0.1792]
[1762484004323,3.2078,3335.8,3335.5,0.1792]
[1762484004523,3.2078,3335.8,3335.7,0.2664]
[1762484004928,3.21118346,3335.8,3335.7,0.26950827]
[1762484005129,3.69709346,3335.8,3335.7,0.26950827]
[1762484005427,3.69709346,3335.8,3335.7,0.00310827]
[1762484005932,3.21118346,3335.8,3335.7,0.26950827]
[1762484006619,0.00338346,3335.8,3335.7,8.26950827]
[1762484006821,0.00449661,3336.1,3335.7,8.26950827]
[1762484006822,0.00449661,3336.1,3336.0,0.4456]
[1762484007130,0.00449661,3336.1,3336.0,0.93148]
[1762484007326,0.00449661,3336.1,3336.0,8.93148]
[1762484007530,3.2078,3337.0,3336.9,0.2664]
[1762484007724,3.21004629,3337.0,3336.5,0.665]
[1762484008629,0.48577,3336.8,3336.5,0.1792]
[1762484008930,0.48577,3336.8,3336.5,0.66501]
[1762484009132,0.48576,3336.9,3336.5,0.1792]
[1762484009324,3.21004629,3337.0,3336.5,0.1792]
[1762484009325,0.48577,3336.8,3336.5,0.665]
[1762484009630,0.48577,3336.8,3336.6,0.48579]
[1762484009830,3.21004629,3337.0,3336.7,0.75217]
[1762484010218,0.48579,3336.7,3336.5,0.1792]
[1762484010419,0.68641,3336.5,3336.4,0.00449661]
[1762484012428,3.2078,3336.6,3336.5,0.1792]
[1762484012627,3.2078,3336.6,3336.5,0.4456]
[1762484013228,3.21004629,3337.0,3336.5,0.1792]
[1762484013422,3.10278357,3337.4,3337.0,0.4456]
[1762484013628,0.48564,3337.7,3337.5,0.66486]
[1762484014037,3.2078,3337.9,3337.5,0.1792]
[1762484014225,3.2078,3337.9,3337.8,0.75202]
[1762484014423,3.21052057,3337.9,3337.8,0.75202]
[1762484014829,0.48562,3337.8,3337.6,0.48564]
[1762484015328,3.21052057,3337.9,3337.6,0.48564]
[1762484015528,3.69613057,3337.9,3337.7,0.48563]
[1762484015728,0.48564,3337.7,3337.5,0.66486]
[1762484015928,0.48564,3337.7,3337.5,0.48566]
[1762484016129,0.00272057,3337.9,3337.8,0.6354]
[1762484016426,0.48564,3337.7,3337.3,0.48569]
[1762484016627,3.21052057,3337.9,3337.4,0.48567]
[1762484016822,0.00272057,3337.9,3337.7,0.48563]
[1762484017027,0.00272057,3337.9,3337.8,0.6354]
[1762484017625,3.2078,3338.7,3337.8,8.1635]
[1762484017830,3.2078,3338.7,3338.6,0.9574]
[1762484018737,3.2078,3339.1,3338.9,0.48546]
[1762484018937,3.21115668,3339.1,3338.9,0.48546]
[1762484019328,0.48545,3339.0,3338.7,0.48548]
[1762484019535,0.4565,3338.7,3338.6,0.00269769]
[1762484019734,3.6643,3338.7,3338.6,0.00269769]
[1762484022336,0.48559,3338.0,3337.9,0.00449661]
[1762484022545,0.94209,3338.0,3337.9,0.00449661]
[1762484023139,0.4565,3338.0,3337.9,0.00449661]
[1762484023333,0.4565,3338.0,3337.9,0.00813361]
[1762484023746,3.2078,3338.1,3337.9,0.49373361]
[1762484023946,3.69338,3338.1,3337.9,0.49373361]
[1762484025340,0.4565,3338.0,3337.9,0.00813361]
[1762484028152,3.69338,3338.1,3338.0,0.48559]
[1762484028347,3.2078,3338.9,3338.5,0.48551]
[1762484028550,3.2078,3338.9,3338.5,0.2675]
[1762484028748,3.2078,3338.9,3338.7,0.48548]
[1762484029050,3.2078,3338.9,3338.8,0.4466]
[1762484029746,0.00335668,3339.1,3339.0,0.7141]
[1762484037456,3.2078,3339.9,3339.8,0.93193]
[1762484037661,3.69307,3340.3,3340.1,0.48528]
[1762484037855,3.2078,3340.3,3340.1,0.48528]
[1762484038455,3.2078,3340.7,3340.4,0.48524]
[1762484038761,3.2078,3340.7,3340.4,0.487513]
[1762484038762,3.21144429,3340.7,3340.4,0.487513]
[1762484038951,3.69664429,3340.7,3340.4,0.487513]
[1762484039148,3.21144429,3340.7,3340.6,0.48521]
[1762484039350,0.00364429,3340.7,3340.6,0.4466]
[1762484039647,3.21144429,3340.7,3340.6,4.932]
[1762484039856,3.66794429,3340.7,3340.4,0.487513]
[1762484040159,0.4565,3340.5,3340.4,0.002273]
[1762484040355,3.21144429,3340.7,3340.5,0.2675]
[1762484040656,0.48523,3340.6,3340.4,0.002273]
[1762484041760,3.21144429,3340.7,3340.4,0.002273]
[1762484042153,0.00364429,3340.7,3340.4,0.002273]
[1762484042561,0.48885429,3340.7,3340.5,0.48522]
[1762484042763,0.00364429,3340.7,3340.5,1.19932]
[1762484043157,0.00364429,3340.7,3340.6,0.4466]
[1762484045360,0.4851,3341.4,3341.0,0.76065]
[1762484045564,0.48512,3341.3,3341.0,0.76065]
[1762484045759,0.48513,3341.2,3341.0,0.2755]
[1762484046254,0.00253773,3341.2,3341.1,0.91634]
[1762484046456,0.00253773,3341.2,3341.1,0.4312]
[1762484047463,0.48767773,3341.2,3341.0,0.2755]
[1762484047658,0.00253773,3341.2,3340.7,0.48519]
[1762484047962,0.48521,3340.7,3340.5,0.2675]
[1762484048159,3.188,3342.3,3340.5,0.2675]
[1762484048160,1.878,3341.0,3340.5,0.2675]
[1762484048361,1.87038225,3343.5,3342.7,0.4312]
[1762484048560,0.4328,3342.9,3342.8,0.0044896]
[1762484049075,0.263,3343.0,3342.8,0.4893796]
[1762484049268,0.48477,3343.7,3343.2,0.48483]
[1762484049568,0.00347277,3343.7,3343.4,0.4848]
[1762484049767,0.00347277,3343.7,3343.5,0.48479]
[1762484050162,0.263,3344.5,3343.6,0.4312]
[1762484050355,0.263,3344.4,3343.9,3.2078]
[1762484050554,0.4328,3343.7,3343.0,3.2078]
[1762484050762,0.48478,3343.6,3343.4,3.2078]
[1762484051060,0.263,3343.8,3343.4,3.2078]
[1762484051370,0.4328,3343.5,3343.4,3.2078]
[1762484051560,0.48477,3343.7,3343.4,3.2078]
[1762484051767,0.75116256,3343.8,3343.4,3.2078]
[1762484052160,0.26641256,3343.8,3343.4,3.2078]
[1762484052365,0.75116256,3343.8,3343.4,3.2078]
[1762484052766,0.26641256,3343.8,3343.4,3.2078]
[1762484053068,0.4328,3343.5,3343.4,3.2078]
[1762484053260,0.26641256,3343.8,3343.0,3.2078]
[1762484053461,0.263,3343.2,3343.0,3.2078]
[1762484053661,0.74785,3343.2,3343.0,3.2078]
[1762484053965,0.4328,3342.9,3342.8,0.00783221]
[1762484054172,0.9178,3342.1,3342.0,3.2078]
[1762484054466,0.9178,3342.1,3341.0,9.054]
[1762484054467,0.74802,3342.0,3341.6,3.2078]
[1762484054662,0.48499,3342.2,3341.6,3.2078]
[1762484054864,0.48499,3342.2,3342.0,3.2078]
[1762484055264,0.4328,3342.1,3342.0,0.00354984]
[1762484056069,0.48499,3342.2,3342.0,0.00354984]
[1762484056873,0.4328,3342.1,3342.0,0.00354984]
[1762484058175,0.4328,3341.9,3341.8,0.0044896]
[1762484058366,3.6406,3341.9,3341.8,0.0044896]
[1762484058875,0.74802,3342.0,3341.8,0.0044896]
[1762484059164,0.74802,3342.0,3341.8,0.00711534]
[1762484059362,0.48499,3342.2,3341.8,0.00711534]
[1762484059562,3.21226628,3342.4,3341.8,0.00711534]
[1762484059762,0.48499,3342.2,3341.9,0.48503]
[1762484059971,0.485,3342.1,3341.8,0.00711534]
[1762484060266,0.74802,3342.0,3341.8,0.00711534]
[1762484060460,0.263,3342.0,3341.8,0.00711534]
[1762484060770,0.48497,3342.3,3342.0,0.48501]
[1762484060968,0.00446628,3342.4,3342.0,3.69281]
[1762484061168,0.48497,3342.3,3342.0,3.69281]
[1762484061670,0.48497,3342.3,3342.1,0.48499]
[1762484061873,0.48497,3342.3,3342.0,3.2078]
[1762484062165,0.263,3343.2,3342.8,0.48489]
[1762484062376,0.74784,3343.2,3342.8,0.48489]
[1762484062669,0.74784,3343.2,3342.7,3.2078]
[1762484062670,0.263,3343.2,3343.0,0.48486]
[1762484063766,0.4328,3342.8,3342.7,3.2078]
[1762484063968,0.263,3342.6,3342.4,0.48495]
[1762484064860,0.48494,3342.5,3342.3,3.2078]
[1762484065768,0.4328,3342.4,3342.3,3.2078]
[1762484066074,0.74802,3342.0,3341.8,3.21491534]
[1762484066272,0.4328,3341.9,3341.8,3.21491534]
[1762484066570,0.4328,3341.9,3341.8,0.00711534]
[1762484067559,3.6406,3341.9,3341.8,0.00711534]
[1762484067765,0.91788,3341.5,3341.4,3.2078]
[1762484067970,0.91796,3341.1,3341.0,3.2078]
[1762484068771,0.92091904,3341.1,3341.0,3.21140713]
[1762484069367,0.2674896,3341.4,3341.0,3.21140713]
[1762484069568,0.2674896,3341.4,3341.1,0.48513]
[1762484069768,0.48512,3341.3,3341.1,0.48513]
[1762484069965,0.4328,3341.1,3341.0,3.21140713]
[1762484070174,3.6406,3341.1,3341.0,0.00360713]
[1762484070474,3.64430161,3341.1,3341.0,0.00360713]
[1762484071373,1.18099,3340.8,3340.7,0.0044896]
[1762484071672,0.48526,3340.3,3340.2,3.2078]
[1762484072473,0.48526,3340.3,3340.2,3.2101892]
[1762484073165,0.48522,3340.6,3340.2,3.2101892]
[1762484073373,0.48522,3340.6,3340.3,0.48525]
[1762484073677,0.48521,3340.7,3340.2,3.2101892]
[1762484073874,0.48521,3340.7,3340.5,0.48522]
[1762484074067,0.48519,3340.8,3340.2,3.2101892]
[1762484074266,3.21150161,3341.1,3340.6,3.2078]
[1762484074468,0.00370161,3341.1,3340.9,0.48517]
[1762484074775,0.48884161,3341.1,3340.8,0.48518]
[1762484074974,0.48518,3340.9,3340.6,3.2078]
[1762484075170,0.48517,3340.9,3340.6,3.2078]
[1762484075372,0.48519,3340.9,3340.6,3.2078]
[1762484075571,0.48519,3340.8,3340.6,3.2078]
[1762484075777,0.72929,3340.8,3340.6,3.2078]
[1762484076075,0.4529,3340.7,3340.6,3.2078]
[1762484076275,0.72929,3340.8,3340.6,3.2078]
[1762484077376,0.4529,3340.7,3340.6,3.2078]
[1762484077579,0.72929,3340.8,3340.6,3.2078]
[1762484078482,0.48519,3340.8,3340.6,3.2078]
[1762484078679,0.00370161,3341.1,3340.6,3.2078]
[1762484078680,3.2078,3341.7,3340.6,3.2078]
[1762484078881,3.2078,3341.3,3340.6,3.2078]
[1762484079288,3.2078,3341.3,3340.7,0.4852]
[1762484079482,3.2078,3341.7,3340.6,3.2078]
[1762484079782,3.2078,3341.7,3341.4,0.4851]
[1762484079783,3.69287,3341.7,3341.4,0.4851]
[1762484079989,0.48508,3341.6,3341.4,3.2078]
[1762484080489,0.48508,3341.6,3341.4,3.6929]
[1762484080890,0.48826821,3341.6,3341.4,3.6929]
[1762484081288,0.48826821,3341.6,3341.4,3.2078]
[1762484081889,0.48826821,3341.6,3341.4,3.6929]
[1762484082290,0.48826821,3341.6,3341.4,3.2078]
[1762484082496,0.48826821,3341.6,3341.4,3.6929]
[1762484082990,0.263,3342.0,3341.8,0.48504]
[1762484083188,3.2078,3342.5,3341.8,3.2078]
[1762484083594,0.48499,3342.2,3342.0,0.485]
[1762484083790,3.2078,3342.5,3341.8,3.2078]
[1762484083791,0.48502,3342.0,3341.8,3.2078]
[1762484083989,0.485,3342.1,3341.9,0.48502]
[1762484084197,0.485,3342.1,3341.8,3.2078]
[1762484084397,0.48501,3342.0,3341.8,3.2078]
[1762484084593,0.4451,3341.9,3341.8,3.2078]
[1762484084802,0.2845,3342.0,3341.8,3.2078]
[1762484084997,0.48501,3342.1,3341.8,3.2078]
[1762484085298,0.48501,3342.0,3341.8,3.69283]
[1762484085994,0.00228757,3342.2,3342.0,0.48501]
[1762484086194,0.48727757,3342.2,3342.0,0.48501]
[1762484086390,0.48501,3342.1,3341.8,3.2078]
[1762484086595,0.00228757,3342.2,3342.0,0.48501]
[1762484087192,0.48502,3342.0,3341.8,3.2078]
[1762484087402,0.485,3342.1,3341.9,0.94482]
[1762484087597,0.48501,3342.0,3341.9,0.4598]
[1762484087798,0.48501,3342.0,3341.9,0.94483]
[1762484088102,0.00228757,3342.2,3341.9,0.94483]
[1762484088298,0.00228757,3342.2,3342.0,0.48501]
[1762484088500,0.00228757,3342.2,3342.1,0.485]
[1762484088696,0.48502,3342.0,3341.9,0.48503]
[1762484089299,0.48503,3341.9,3341.8,3.2078]
[1762484089497,0.48501,3342.1,3341.9,0.48503]
[1762484089700,0.00228757,3342.2,3341.9,0.94483]
[1762484089701,0.48501,3342.0,3341.9,0.94483]
[1762484090202,0.00228757,3342.2,3342.0,0.48501]
[1762484090402,0.485,3342.1,3342.0,0.4598]
[1762484090602,0.00228757,3342.2,3342.0,0.4598]
[1762484091414,0.00228757,3342.2,3342.1,0.9448]
[1762484091905,0.48726757,3342.2,3342.1,0.4598]
[1762484092304,0.485,3342.1,3342.0,0.48501]
[1762484092499,0.00228757,3342.2,3341.9,0.4598]
[1762484092697,0.485,3342.1,3342.0,0.48501]
[1762484092898,0.485,3342.1,3342.0,0.94481]
[1762484093401,0.485,3342.1,3342.0,0.4598]
[1762484093703,0.485,3342.1,3341.6,0.0044896]
[1762484093704,0.93016,3341.7,3341.6,0.0044896]
[1762484094001,0.00228757,3342.2,3341.6,0.4895596]
[1762484094199,0.00228757,3342.2,3341.6,0.0044896]
[1762484094400,0.48501,3342.0,3341.9,0.4598]
[1762484095105,0.48501,3342.0,3341.9,0.94483]
[1762484095303,0.48503,3341.9,3341.8,0.48503]
[1762484095507,0.48503,3341.9,3341.8,0.4598]
[1762484096005,0.48504,3341.8,3341.6,0.4895596]
[1762484096307,0.48506,3341.7,3341.6,0.0044896]
[1762484097001,0.00228757,3342.2,3341.6,0.0044896]
[1762484097199,0.48503,3341.9,3341.6,0.4895596]
[1762484097600,0.48506,3341.7,3341.6,0.4895596]
[1762484097800,0.48504,3341.8,3341.7,0.94486]
[1762484098204,0.48504,3341.8,3341.7,0.4598]
[1762484098405,0.485,3342.1,3342.0,0.4598]
[1762484099004,0.485,3342.1,3341.9,0.48502]
[1762484099402,0.00228757,3342.2,3342.0,0.4598]
[1762484099609,3.2078,3342.8,3342.1,0.48499]
[1762484099909,0.48493,3342.6,3342.4,0.48495]
[1762484100108,3.2078,3342.9,3342.4,0.48495]
[1762484100109,0.48494,3342.5,3342.4,0.48495]
[1762484100606,0.00358992,3342.5,3342.4,0.94475]
[1762484100904,0.00358992,3342.5,3342.4,4.15255]
[1762484101111,0.48852992,3342.5,3342.4,4.15255]
[1762484101304,0.48852992,3342.5,3342.4,3.2078]
[1762484101500,1.06853785,3344.4,3343.5,0.94459]
[1762484101711,0.78664373,3344.3,3343.6,0.0044896]
[1762484102003,3.2078,3344.4,3343.6,0.0044896]
[1762484102004,0.48475,3343.8,3343.6,0.0044896]
[1762484102210,0.48473,3344.0,3343.6,0.0044896]
[1762484102410,0.2845,3343.8,3343.6,0.0044896]
[1762484102711,0.00250263,3343.8,3343.7,0.48477]
[1762484104007,0.4846,3344.9,3344.1,0.4598]
[1762484104208,0.2845,3345.0,3344.4,3.2078]
[1762484104610,0.2845,3345.0,3344.9,3.2078]
[1762484104912,0.48457,3345.1,3344.9,3.2078]
[1762484105099,0.48788075,3345.1,3344.9,3.2078]
[1762484105307,18.75279291,3352.3,3345.0,0.4621]
[1762484105605,3.84e-06,3349.8,3349.7,0.4839]
[1762484105799,0.2786,3351.6,3349.7,0.83795228]
[1762484106004,0.2786,3351.6,3350.0,2.58328669]
[1762484106005,0.2786,3350.4,3350.0,2.58328669]
[1762484106201,0.00267472,3350.4,3350.3,3.2078]
[1762484106402,0.00267472,3350.4,3350.3,3.40551102]
[1762484106611,0.00267472,3350.4,3350.1,2.173e-05]
[1762484106800,0.2786,3349.8,3349.3,0.28308912]
[1762484107006,3.2078,3349.6,3349.0,3.2078]
[1762484107204,0.48395,3349.3,3349.0,3.2078]
[1762484107408,0.48404,3348.8,3348.3,3.2078]
[1762484107706,0.48406,3348.6,3348.3,0.0034432]
[1762484107908,3.2078,3348.7,3347.1,0.2892]
[1762484107909,8.1058,3348.7,3347.1,0.2892]
[1762484108102,0.5378246,3347.2,3347.1,0.2892]
[1762484108901,0.54102404,3347.2,3347.1,0.29213974]
[1762484109105,0.54102404,3347.2,3347.1,0.00293974]
[1762484109307,0.48433,3346.7,3346.2,3.4355]
[1762484109614,0.48437,3346.5,3346.2,0.2277]
[1762484109806,0.5378246,3346.3,3346.2,0.2277]
[1762484110110,0.5378246,3346.3,3346.2,3.4355]
[1762484110307,0.5378246,3346.3,3346.2,3.43776706]
[1762484110709,1.0222146,3346.3,3346.2,0.00226706]
[1762484111007,16.8026246,3346.3,3346.2,0.29146706]
[1762484111203,10.8258246,3346.3,3345.9,0.00448142]
[1762484111414,0.48449,3345.7,3345.3,3.497]
[1762484111714,10.297,3345.6,3345.3,3.497]
[1762484112015,0.53334318,3345.4,3345.3,3.497]
[1762484112311,0.53334318,3345.4,3345.3,0.29160148]
[1762484112519,0.53334318,3345.4,3345.3,1.48e-06]
[1762484113319,0.48453,3345.3,3345.0,0.00448142]
[1762484113520,0.48465,3344.5,3344.4,3.4355]
[1762484113810,11.2999917,3344.5,3344.4,0.2277]
[1762484114016,10.8113417,3344.5,3344.4,0.2277]
[1762484114411,10.81484047,3344.5,3344.4,0.22988017]
[1762484114611,10.80384047,3344.5,3344.4,3.43768017]
[1762484115923,11.28849047,3344.5,3344.4,3.43768017]
[1762484117308,1.02149047,3344.5,3344.4,3.43768017]
[1762484117512,11.25849047,3344.5,3344.4,3.43768017]
[1762484117712,11.25849047,3344.5,3344.4,0.22988017]
[1762484118516,10.77384047,3344.5,3344.4,5.53711686]
[1762484118716,0.53684047,3344.5,3344.4,1.12771741]
[1762484119020,10.76384047,3344.5,3344.4,1.12771741]
[1762484119620,10.76584047,3344.5,3344.4,1.12771741]
[1762484120314,0.53684047,3344.5,3344.4,1.12771741]
[1762484120719,10.75084047,3344.5,3344.4,1.12771741]
[1762484121013,0.53684047,3344.5,3344.4,1.12771741]
[1762484121225,10.74984047,3344.5,3344.4,1.12771741]
[1762484121520,10.21,3344.5,3344.4,4.33551741]
[1762484121716,10.207,3344.5,3344.4,4.33551741]
[1762484121916,6.97620151,3344.5,3344.4,4.33551741]
[1762484122623,3.2078,3346.0,3345.3,0.2892]
[1762484122828,13.9748,3346.4,3345.7,3.2078]
[1762484123120,0.48445,3345.9,3345.8,0.89783724]
[1762484123322,10.69045,3345.9,3345.8,0.89783724]
[1762484123513,10.69264448,3345.9,3345.8,0.89783724]